Workbook

Sheet predicted arrival flow
A1: Predicting Arrival Flow at the Downstream Signalized Intersection
A3: Upstream Signal | E3: Platoon Dispersion Model | I3: Downstream Signal | M3: Downstream Signal Timing | Q3: Delay
A4: C | B4: 60 | C4: sec | E4: Speed | F4: 25 | G4: mi/hr | I4: Distance | J4: 1000 | K4: ft | M4: GreenStart1 | N4: =N8-J6 -> 25 | O4: 5 | Q4: Total | R4: =SUM(H14:H214) -> 345.5006593 | S4: sec
A5: g | B5: 30 | C5: sec | E5: tR | F5: =(J4)/(1.47*F4) -> 27.21088435 | G5: sec | I5: Offset | J5: 55 | K5: sec | M5: GreenEnd1 | N5: =N9-J6 -> 55 | O5: 5 | Q5: Average | R5: =R4/(B8/B4) -> 25.91254945 | S5: sec/veh
A6: r | B6: =B4-B5 -> 30 | C6: sec | E6: tprime | F6: =tprime(F5,F7) -> 23.39078231 | G6: sec | I6: C | J6: =B4 -> 60 | K6: sec | M6: RedStart1 | N6: =N10-J6 -> 55 | O6: 5
A7: SatFlow | B7: 1800 | C7: veh/hr-g | E7: F | F7: =F(F5) -> 0.1972346892 | I7: g | J7: =B5 -> 30 | K7: sec | M7: RedEnd1 | N7: =N11-J6 -> 85 | O7: 5
A8: ArrFlow | B8: 800 | C8: veh/hr | I8: r | J8: =B6 -> 30 | K8: sec | M8: GreenStart2 | N8: =B5+J5 -> 85 | O8: 5 | Q8: Delay as function of offset
A9: gs | B9: =(B8*B6)/(B7-B8) -> 24 | C9: sec | I9: gs | J9: =B9 -> 24 | K9: =C9 -> sec | M9: GreenEnd2 | N9: =N8+J7 -> 115 | O9: 5 | Q9: Offset | R9: AverageD
M10: RedStart2 | N10: =N9 -> 115 | O10: 5 | Q10: 0 | R10: 23.66370695
M11: RedEnd2 | N11: =N10+J8 -> 145 | O11: 5 | Q11: 5 | R11: 19.59854578
A12: Flow Profile Departing | D12: Flow Profile Arriving | M12: GreenStart3 | N12: =N8+J6 -> 145 | O12: 5 | Q12: 10 | R12: 14.54221113
A13: Time i | B13: DepFlowi | D13: Time i | E13: ArrFlowj | F13: ArrFlowj | G13: QueueStatus | H13: Queue | M13: GreenEnd3 | N13: =N9+J6 -> 175 | O13: 5 | Q13: 15 | R13: 9.153062436
A14: 0 | B14: =DepFlowi($B$9,$B$5,$B$4,$B$8,$B$7,A14) -> 0 | D14: 0 | E14: =IF(A14>$F$6+$B$6,ArrFlow_j(INDIRECT("b"&ROW()-INT($F$6)),E13,$F$7),0) -> 0 | F14: =E14/3600 -> 0 | G14: =QueueStatus(D14,F14,$N$10,$N$11,$J$9,$N$13,H13) -> 0 | M14: RedStart3 | N14: =N10+J6 -> 175 | O14: 5 | Q14: 20 | R14: 4.386566466
A15: 1 | B15: 0 | D15: 1 | E15: =IF(A15>$F$6+$B$6,ArrFlow_j(INDIRECT("b"&ROW()-INT($F$6)),E14,$F$7),0) -> 0 | F15: =E15/3600 -> 0 | G15: =QueueStatus(D15,F15,$N$10,$N$11,$J$9,$N$13,H14) -> 0 | H15: =QueueLength(D15,$N$10,$N$11,H14,G15,$J$9) -> 0 | M15: RedEnd3 | N15: =N11+J6 -> 205 | O15: 5 | Q15: 25 | R15: 1.674933653
A16: 2 | B16: 0 | D16: 2 | E16: =IF(A16>$F$6+$B$6,ArrFlow_j(INDIRECT("b"&ROW()-INT($F$6)),E15,$F$7),0) -> 0 | F16: 0 | G16: =QueueStatus(D16,F16,$N$10,$N$11,$J$9,$N$13,H15) -> 0 | H16: =QueueLength(D16,$N$10,$N$11,H15,G16,$J$9) -> 0 | M16: GreenStart4 | N16: =N12+J6 -> 205 | O16: 5 | Q16: 30 | R16: 3.321413547
A17: 3 | B17: 0 | D17: 3 | E17: =IF(A17>$F$6+$B$6,ArrFlow_j(INDIRECT("b"&ROW()-INT($F$6)),E16,$F$7),0) -> 0 | F17: 0 | G17: 0 | H17: 0 | M17: GreenEnd4 | N17: =N13+J6 -> 235 | O17: 5 | Q17: 35 | R17: 7.476094919
A18: 4 | B18: 0 | D18: 4 | E18: =IF(A18>$F$6+$B$6,ArrFlow_j(INDIRECT("b"&ROW()-INT($F$6)),E17,$F$7),0) -> 0 | F18: 0 | G18: 0 | H18: 0 | Q18: 40 | R18: 12.19531772
A19: 5 | B19: 0 | D19: 5 | E19: =IF(A19>$F$6+$B$6,ArrFlow_j(INDIRECT("b"&ROW()-INT($F$6)),E18,$F$7),0) -> 0 | F19: 0 | G19: 0 | H19: 0 | Q19: 45 | R19: 17.10171147
A20: 6 | B20: 0 | D20: 6 | E20: =IF(A20>$F$6+$B$6,ArrFlow_j(INDIRECT("b"&ROW()-INT($F$6)),E19,$F$7),0) -> 0 | F20: 0 | G20: 0 | H20: 0 | Q20: 50 | R20: 22.07050477
A21: 7 | B21: 0 | D21: 7 | E21: =IF(A21>$F$6+$B$6,ArrFlow_j(INDIRECT("b"&ROW()-INT($F$6)),E20,$F$7),0) -> 0 | F21: 0 | G21: 0 | H21: 0 | Q21: 55 | R21: 25.91254945
A22: 8 | B22: 0 | D22: 8 | E22: =IF(A22>$F$6+$B$6,ArrFlow_j(INDIRECT("b"&ROW()-INT($F$6)),E21,$F$7),0) -> 0 | F22: 0 | G22: 0 | H22: 0 | Q22: 60 | R22: 24.04305207
A23: 9 | B23: 0 | D23: 9 | E23: =IF(A23>$F$6+$B$6,ArrFlow_j(INDIRECT("b"&ROW()-INT($F$6)),E22,$F$7),0) -> 0 | F23: 0 | G23: 0 | H23: 0
A24: 10 | B24: 0 | D24: 10 | E24: =IF(A24>$F$6+$B$6,ArrFlow_j(INDIRECT("b"&ROW()-INT($F$6)),E23,$F$7),0) -> 0 | F24: 0 | G24: 0 | H24: 0
A25: 11 | B25: 0 | D25: 11 | E25: =IF(A25>$F$6+$B$6,ArrFlow_j(INDIRECT("b"&ROW()-INT($F$6)),E24,$F$7),0) -> 0 | F25: 0 | G25: 0 | H25: 0
A26: 12 | B26: 0 | D26: 12 | E26: =IF(A26>$F$6+$B$6,ArrFlow_j(INDIRECT("b"&ROW()-INT($F$6)),E25,$F$7),0) -> 0 | F26: 0 | G26: 0 | H26: 0
A27: 13 | B27: 0 | D27: 13 | E27: =IF(A27>$F$6+$B$6,ArrFlow_j(INDIRECT("b"&ROW()-INT($F$6)),E26,$F$7),0) -> 0 | F27: 0 | G27: 0 | H27: 0
A28: 14 | B28: 0 | D28: 14 | E28: =IF(A28>$F$6+$B$6,ArrFlow_j(INDIRECT("b"&ROW()-INT($F$6)),E27,$F$7),0) -> 0 | F28: 0 | G28: 0 | H28: 0
A29: 15 | B29: 0 | D29: 15 | E29: =IF(A29>$F$6+$B$6,ArrFlow_j(INDIRECT("b"&ROW()-INT($F$6)),E28,$F$7),0) -> 0 | F29: 0 | G29: 0 | H29: 0
A30: 16 | B30: 0 | D30: 16 | E30: =IF(A30>$F$6+$B$6,ArrFlow_j(INDIRECT("b"&ROW()-INT($F$6)),E29,$F$7),0) -> 0 | F30: 0 | G30: 0 | H30: 0
A31: 17 | B31: 0 | D31: 17 | E31: =IF(A31>$F$6+$B$6,ArrFlow_j(INDIRECT("b"&ROW()-INT($F$6)),E30,$F$7),0) -> 0 | F31: 0 | G31: 0 | H31: 0
A32: 18 | B32: 0 | D32: 18 | E32: =IF(A32>$F$6+$B$6,ArrFlow_j(INDIRECT("b"&ROW()-INT($F$6)),E31,$F$7),0) -> 0 | F32: 0 | G32: 0 | H32: 0
A33: 19 | B33: 0 | D33: 19 | E33: =IF(A33>$F$6+$B$6,ArrFlow_j(INDIRECT("b"&ROW()-INT($F$6)),E32,$F$7),0) -> 0 | F33: 0 | G33: 0 | H33: 0 | Q33: Cycle Range Line
A34: 20 | B34: 0 | D34: 20 | E34: =IF(A34>$F$6+$B$6,ArrFlow_j(INDIRECT("b"&ROW()-INT($F$6)),E33,$F$7),0) -> 0 | F34: 0 | G34: 0 | H34: 0 | Q34: RedStart2 | R34: =N10 -> 115 | S34: 0
A35: 21 | B35: 0 | D35: 21 | E35: =IF(A35>$F$6+$B$6,ArrFlow_j(INDIRECT("b"&ROW()-INT($F$6)),E34,$F$7),0) -> 0 | F35: 0 | G35: 0 | H35: 0 | Q35: GreenEnd3 | R35: =N13 -> 175 | S35: 0
A36: 22 | B36: 0 | D36: 22 | E36: =IF(A36>$F$6+$B$6,ArrFlow_j(INDIRECT("b"&ROW()-INT($F$6)),E35,$F$7),0) -> 0 | F36: 0 | G36: 0 | H36: 0
A37: 23 | B37: 0 | D37: 23 | E37: =IF(A37>$F$6+$B$6,ArrFlow_j(INDIRECT("b"&ROW()-INT($F$6)),E36,$F$7),0) -> 0 | F37: 0 | G37: 0 | H37: 0
A38: 24 | B38: 0 | D38: 24 | E38: =IF(A38>$F$6+$B$6,ArrFlow_j(INDIRECT("b"&ROW()-INT($F$6)),E37,$F$7),0) -> 0 | F38: 0 | G38: 0 | H38: 0
A39: 25 | B39: 0 | D39: 25 | E39: =IF(A39>$F$6+$B$6,ArrFlow_j(INDIRECT("b"&ROW()-INT($F$6)),E38,$F$7),0) -> 0 | F39: 0 | G39: 0 | H39: 0
A40: 26 | B40: 0 | D40: 26 | E40: =IF(A40>$F$6+$B$6,ArrFlow_j(INDIRECT("b"&ROW()-INT($F$6)),E39,$F$7),0) -> 0 | F40: 0 | G40: 0 | H40: 0
A41: 27 | B41: 0 | D41: 27 | E41: =IF(A41>$F$6+$B$6,ArrFlow_j(INDIRECT("b"&ROW()-INT($F$6)),E40,$F$7),0) -> 0 | F41: 0 | G41: 0 | H41: 0
A42: 28 | B42: 0 | D42: 28 | E42: =IF(A42>$F$6+$B$6,ArrFlow_j(INDIRECT("b"&ROW()-INT($F$6)),E41,$F$7),0) -> 0 | F42: 0 | G42: 0 | H42: 0
A43: 29 | B43: 0 | D43: 29 | E43: =IF(A43>$F$6+$B$6,ArrFlow_j(INDIRECT("b"&ROW()-INT($F$6)),E42,$F$7),0) -> 0 | F43: 0 | G43: 0 | H43: 0
A44: 30 | B44: 1800 | D44: 30 | E44: =IF(A44>$F$6+$B$6,ArrFlow_j(INDIRECT("b"&ROW()-INT($F$6)),E43,$F$7),0) -> 0 | F44: 0 | G44: 0 | H44: 0
A45: 31 | B45: 1800 | D45: 31 | E45: =IF(A45>$F$6+$B$6,ArrFlow_j(INDIRECT("b"&ROW()-INT($F$6)),E44,$F$7),0) -> 0 | F45: 0 | G45: 0 | H45: 0
A46: 32 | B46: 1800 | D46: 32 | E46: =IF(A46>$F$6+$B$6,ArrFlow_j(INDIRECT("b"&ROW()-INT($F$6)),E45,$F$7),0) -> 0 | F46: 0 | G46: 0 | H46: 0
A47: 33 | B47: 1800 | D47: 33 | E47: =IF(A47>$F$6+$B$6,ArrFlow_j(INDIRECT("b"&ROW()-INT($F$6)),E46,$F$7),0) -> 0 | F47: 0 | G47: 0 | H47: 0
A48: 34 | B48: 1800 | D48: 34 | E48: =IF(A48>$F$6+$B$6,ArrFlow_j(INDIRECT("b"&ROW()-INT($F$6)),E47,$F$7),0) -> 0 | F48: 0 | G48: 0 | H48: 0
A49: 35 | B49: 1800 | D49: 35 | E49: =IF(A49>$F$6+$B$6,ArrFlow_j(INDIRECT("b"&ROW()-INT($F$6)),E48,$F$7),0) -> 0 | F49: 0 | G49: 0 | H49: 0
A50: 36 | B50: 1800 | D50: 36 | E50: =IF(A50>$F$6+$B$6,ArrFlow_j(INDIRECT("b"&ROW()-INT($F$6)),E49,$F$7),0) -> 0 | F50: 0 | G50: 0 | H50: 0
A51: 37 | B51: 1800 | D51: 37 | E51: =IF(A51>$F$6+$B$6,ArrFlow_j(INDIRECT("b"&ROW()-INT($F$6)),E50,$F$7),0) -> 0 | F51: 0 | G51: 0 | H51: 0
A52: 38 | B52: 1800 | D52: 38 | E52: =IF(A52>$F$6+$B$6,ArrFlow_j(INDIRECT("b"&ROW()-INT($F$6)),E51,$F$7),0) -> 0 | F52: 0 | G52: 0 | H52: 0
A53: 39 | B53: 1800 | D53: 39 | E53: =IF(A53>$F$6+$B$6,ArrFlow_j(INDIRECT("b"&ROW()-INT($F$6)),E52,$F$7),0) -> 0 | F53: 0 | G53: 0 | H53: 0
A54: 40 | B54: 1800 | D54: 40 | E54: =IF(A54>$F$6+$B$6,ArrFlow_j(INDIRECT("b"&ROW()-INT($F$6)),E53,$F$7),0) -> 0 | F54: 0 | G54: 0 | H54: 0
A55: 41 | B55: 1800 | D55: 41 | E55: =IF(A55>$F$6+$B$6,ArrFlow_j(INDIRECT("b"&ROW()-INT($F$6)),E54,$F$7),0) -> 0 | F55: 0 | G55: 0 | H55: 0
A56: 42 | B56: 1800 | D56: 42 | E56: =IF(A56>$F$6+$B$6,ArrFlow_j(INDIRECT("b"&ROW()-INT($F$6)),E55,$F$7),0) -> 0 | F56: 0 | G56: 0 | H56: 0
A57: 43 | B57: 1800 | D57: 43 | E57: =IF(A57>$F$6+$B$6,ArrFlow_j(INDIRECT("b"&ROW()-INT($F$6)),E56,$F$7),0) -> 0 | F57: 0 | G57: 0 | H57: 0
A58: 44 | B58: 1800 | D58: 44 | E58: =IF(A58>$F$6+$B$6,ArrFlow_j(INDIRECT("b"&ROW()-INT($F$6)),E57,$F$7),0) -> 0 | F58: 0 | G58: 0 | H58: 0
A59: 45 | B59: 1800 | D59: 45 | E59: =IF(A59>$F$6+$B$6,ArrFlow_j(INDIRECT("b"&ROW()-INT($F$6)),E58,$F$7),0) -> 0 | F59: 0 | G59: 0 | H59: 0
A60: 46 | B60: 1800 | D60: 46 | E60: =IF(A60>$F$6+$B$6,ArrFlow_j(INDIRECT("b"&ROW()-INT($F$6)),E59,$F$7),0) -> 0 | F60: 0 | G60: 0 | H60: 0
A61: 47 | B61: 1800 | D61: 47 | E61: =IF(A61>$F$6+$B$6,ArrFlow_j(INDIRECT("b"&ROW()-INT($F$6)),E60,$F$7),0) -> 0 | F61: 0 | G61: 0 | H61: 0
A62: 48 | B62: 1800 | D62: 48 | E62: =IF(A62>$F$6+$B$6,ArrFlow_j(INDIRECT("b"&ROW()-INT($F$6)),E61,$F$7),0) -> 0 | F62: 0 | G62: 0 | H62: 0
A63: 49 | B63: 1800 | D63: 49 | E63: =IF(A63>$F$6+$B$6,ArrFlow_j(INDIRECT("b"&ROW()-INT($F$6)),E62,$F$7),0) -> 0 | F63: 0 | G63: 0 | H63: 0
A64: 50 | B64: 1800 | D64: 50 | E64: =IF(A64>$F$6+$B$6,ArrFlow_j(INDIRECT("b"&ROW()-INT($F$6)),E63,$F$7),0) -> 0 | F64: 0 | G64: 0 | H64: 0
A65: 51 | B65: 1800 | D65: 51 | E65: =IF(A65>$F$6+$B$6,ArrFlow_j(INDIRECT("b"&ROW()-INT($F$6)),E64,$F$7),0) -> 0 | F65: 0 | G65: 0 | H65: 0
A66: 52 | B66: 1800 | D66: 52 | E66: =IF(A66>$F$6+$B$6,ArrFlow_j(INDIRECT("b"&ROW()-INT($F$6)),E65,$F$7),0) -> 0 | F66: 0 | G66: 0 | H66: 0
A67: 53 | B67: 1800 | D67: 53 | E67: =IF(A67>$F$6+$B$6,ArrFlow_j(INDIRECT("b"&ROW()-INT($F$6)),E66,$F$7),0) -> 0 | F67: 0 | G67: 0 | H67: 0
A68: 54 | B68: 800 | D68: 54 | E68: =IF(A68>$F$6+$B$6,ArrFlow_j(INDIRECT("b"&ROW()-INT($F$6)),E67,$F$7),0) -> 355.0224405 | F68: 0.09861734458 | G68: 0 | H68: 0
A69: 55 | B69: 800 | D69: 55 | E69: =IF(A69>$F$6+$B$6,ArrFlow_j(INDIRECT("b"&ROW()-INT($F$6)),E68,$F$7),0) -> 640.0221403 | F69: 0.1777839279 | G69: 0 | H69: 0
A70: 56 | B70: 800 | D70: 56 | E70: =IF(A70>$F$6+$B$6,ArrFlow_j(INDIRECT("b"&ROW()-INT($F$6)),E69,$F$7),0) -> 868.8100129 | F70: 0.2413361147 | G70: 0 | H70: 0
A71: 57 | B71: 800 | D71: 57 | E71: =IF(A71>$F$6+$B$6,ArrFlow_j(INDIRECT("b"&ROW()-INT($F$6)),E70,$F$7),0) -> 1052.472981 | F71: 0.2923536057 | G71: 0 | H71: 0
A72: 58 | B72: 800 | D72: 58 | E72: =IF(A72>$F$6+$B$6,ArrFlow_j(INDIRECT("b"&ROW()-INT($F$6)),E71,$F$7),0) -> 1199.91124 | F72: 0.3333086777 | G72: 0 | H72: 0
A73: 59 | B73: 800 | D73: 59 | E73: =IF(A73>$F$6+$B$6,ArrFlow_j(INDIRECT("b"&ROW()-INT($F$6)),E72,$F$7),0) -> 1318.26956 | F73: 0.3661859889 | G73: 0 | H73: 0
A74: 60 | B74: 0 | D74: 60 | E74: =IF(A74>$F$6+$B$6,ArrFlow_j(INDIRECT("b"&ROW()-INT($F$6)),E73,$F$7),0) -> 1413.283514 | F74: 0.3925787538 | G74: 0 | H74: 0
A75: 61 | B75: 0 | D75: 61 | E75: =IF(A75>$F$6+$B$6,ArrFlow_j(INDIRECT("b"&ROW()-INT($F$6)),E74,$F$7),0) -> 1489.55742 | F75: 0.4137659499 | G75: 0 | H75: 0
A76: 62 | B76: 0 | D76: 62 | E76: =IF(A76>$F$6+$B$6,ArrFlow_j(INDIRECT("b"&ROW()-INT($F$6)),E75,$F$7),0) -> 1550.787465 | F76: 0.4307742959 | G76: 0 | H76: 0
A77: 63 | B77: 0 | D77: 63 | E77: =IF(A77>$F$6+$B$6,ArrFlow_j(INDIRECT("b"&ROW()-INT($F$6)),E76,$F$7),0) -> 1599.940822 | F77: 0.4444280062 | G77: 0 | H77: 0
A78: 64 | B78: =DepFlowi($B$9,$B$5,$B$4,$B$8,$B$7,A78) -> 0 | D78: 64 | E78: =IF(A78>$F$6+$B$6,ArrFlow_j(INDIRECT("b"&ROW()-INT($F$6)),E77,$F$7),0) -> 1639.399432 | F78: 0.4553887311 | G78: 0 | H78: 0
A79: 65 | B79: 0 | D79: 65 | E79: =IF(A79>$F$6+$B$6,ArrFlow_j(INDIRECT("b"&ROW()-INT($F$6)),E78,$F$7),0) -> 1671.075435 | F79: =E79/3600 -> 0.4641876208 | G79: 0 | H79: 0
A80: 66 | B80: 0 | D80: 66 | E80: =IF(A80>$F$6+$B$6,ArrFlow_j(INDIRECT("b"&ROW()-INT($F$6)),E79,$F$7),0) -> 1696.503832 | F80: 0.4712510643 | G80: =QueueStatus(D80,F80,$N$10,$N$11,$J$9,$N$13,H79) -> 0 | H80: =QueueLength(D80,$N$10,$N$11,H79,G80,$J$9) -> 0
A81: 67 | B81: 0 | D81: 67 | E81: =IF(A81>$F$6+$B$6,ArrFlow_j(INDIRECT("b"&ROW()-INT($F$6)),E80,$F$7),0) -> 1716.916866 | F81: 0.4769213517 | G81: 0 | H81: 0
A82: 68 | B82: 0 | D82: 68 | E82: =IF(A82>$F$6+$B$6,ArrFlow_j(INDIRECT("b"&ROW()-INT($F$6)),E81,$F$7),0) -> 1733.303742 | F82: 0.4814732617 | G82: 0 | H82: 0
A83: 69 | B83: 0 | D83: 69 | E83: =IF(A83>$F$6+$B$6,ArrFlow_j(INDIRECT("b"&ROW()-INT($F$6)),E82,$F$7),0) -> 1746.458558 | F83: 0.4851273772 | G83: 0 | H83: 0
A84: 70 | B84: 0 | D84: 70 | E84: =IF(A84>$F$6+$B$6,ArrFlow_j(INDIRECT("b"&ROW()-INT($F$6)),E83,$F$7),0) -> 1757.018788 | F84: 0.4880607743 | G84: 0 | H84: 0
A85: 71 | B85: 0 | D85: 71 | E85: =IF(A85>$F$6+$B$6,ArrFlow_j(INDIRECT("b"&ROW()-INT($F$6)),E84,$F$7),0) -> 1765.496174 | F85: 0.4904156038 | G85: 0 | H85: 0
A86: 72 | B86: 0 | D86: 72 | E86: =IF(A86>$F$6+$B$6,ArrFlow_j(INDIRECT("b"&ROW()-INT($F$6)),E85,$F$7),0) -> 1772.301525 | F86: 0.4923059792 | G86: 0 | H86: 0
A87: 73 | B87: 0 | D87: 73 | E87: =IF(A87>$F$6+$B$6,ArrFlow_j(INDIRECT("b"&ROW()-INT($F$6)),E86,$F$7),0) -> 1777.764625 | F87: 0.493823507 | G87: 0 | H87: 0
A88: 74 | B88: 0 | D88: 74 | E88: =IF(A88>$F$6+$B$6,ArrFlow_j(INDIRECT("b"&ROW()-INT($F$6)),E87,$F$7),0) -> 1782.150212 | F88: 0.4950417257 | G88: 0 | H88: 0
A89: 75 | B89: 0 | D89: 75 | E89: =IF(A89>$F$6+$B$6,ArrFlow_j(INDIRECT("b"&ROW()-INT($F$6)),E88,$F$7),0) -> 1785.67081 | F89: 0.4960196694 | G89: 0 | H89: 0
A90: 76 | B90: 0 | D90: 76 | E90: =IF(A90>$F$6+$B$6,ArrFlow_j(INDIRECT("b"&ROW()-INT($F$6)),E89,$F$7),0) -> 1788.497023 | F90: 0.4968047286 | G90: 0 | H90: 0
A91: 77 | B91: 0 | D91: 77 | E91: =IF(A91>$F$6+$B$6,ArrFlow_j(INDIRECT("b"&ROW()-INT($F$6)),E90,$F$7),0) -> 1593.53112 | F91: 0.4426475333 | G91: 0 | H91: 0
A92: 78 | B92: 0 | D92: 78 | E92: =IF(A92>$F$6+$B$6,ArrFlow_j(INDIRECT("b"&ROW()-INT($F$6)),E91,$F$7),0) -> 1437.019256 | F92: 0.3991720156 | G92: 0 | H92: 0
A93: 79 | B93: 0 | D93: 79 | E93: =IF(A93>$F$6+$B$6,ArrFlow_j(INDIRECT("b"&ROW()-INT($F$6)),E92,$F$7),0) -> 1311.376961 | F93: 0.3642713781 | G93: 0 | H93: 0
A94: 80 | B94: 0 | D94: 80 | E94: =IF(A94>$F$6+$B$6,ArrFlow_j(INDIRECT("b"&ROW()-INT($F$6)),E93,$F$7),0) -> 1210.515685 | F94: 0.336254357 | G94: 0 | H94: 0
A95: 81 | B95: 0 | D95: 81 | E95: =IF(A95>$F$6+$B$6,ArrFlow_j(INDIRECT("b"&ROW()-INT($F$6)),E94,$F$7),0) -> 1129.547752 | F95: 0.3137632644 | G95: 0 | H95: 0
A96: 82 | B96: 0 | D96: 82 | E96: =IF(A96>$F$6+$B$6,ArrFlow_j(INDIRECT("b"&ROW()-INT($F$6)),E95,$F$7),0) -> 1064.549503 | F96: 0.2957081954 | G96: 0 | H96: 0
A97: 83 | B97: 0 | D97: 83 | E97: =IF(A97>$F$6+$B$6,ArrFlow_j(INDIRECT("b"&ROW()-INT($F$6)),E96,$F$7),0) -> 854.5834129 | F97: 0.2373842814 | G97: 0 | H97: 0
A98: 84 | B98: 0 | D98: 84 | E98: =IF(A98>$F$6+$B$6,ArrFlow_j(INDIRECT("b"&ROW()-INT($F$6)),E97,$F$7),0) -> 686.0299191 | F98: 0.1905638664 | G98: 0 | H98: 0
A99: 85 | B99: 0 | D99: 85 | E99: =IF(A99>$F$6+$B$6,ArrFlow_j(INDIRECT("b"&ROW()-INT($F$6)),E98,$F$7),0) -> 550.7210213 | F99: 0.1529780615 | G99: 0 | H99: 0
A100: 86 | B100: 0 | D100: 86 | E100: =IF(A100>$F$6+$B$6,ArrFlow_j(INDIRECT("b"&ROW()-INT($F$6)),E99,$F$7),0) -> 442.0997318 | F100: 0.1228054811 | G100: 0 | H100: 0
A101: 87 | B101: 0 | D101: 87 | E101: =IF(A101>$F$6+$B$6,ArrFlow_j(INDIRECT("b"&ROW()-INT($F$6)),E100,$F$7),0) -> 354.9023287 | F101: 0.09858398018 | G101: 0 | H101: 0
A102: 88 | B102: 0 | D102: 88 | E102: =IF(A102>$F$6+$B$6,ArrFlow_j(INDIRECT("b"&ROW()-INT($F$6)),E101,$F$7),0) -> 284.9032782 | F102: 0.0791397995 | G102: 0 | H102: 0
A103: 89 | B103: 0 | D103: 89 | E103: =IF(A103>$F$6+$B$6,ArrFlow_j(INDIRECT("b"&ROW()-INT($F$6)),E102,$F$7),0) -> 228.7104687 | F103: 0.06353068574 | G103: 0 | H103: 0
A104: 90 | B104: 1800 | D104: 90 | E104: =IF(A104>$F$6+$B$6,ArrFlow_j(INDIRECT("b"&ROW()-INT($F$6)),E103,$F$7),0) -> 183.6008305 | F104: 0.05100023069 | G104: 0 | H104: 0
A105: 91 | B105: 1800 | D105: 91 | E105: =IF(A105>$F$6+$B$6,ArrFlow_j(INDIRECT("b"&ROW()-INT($F$6)),E104,$F$7),0) -> 147.3883777 | F105: 0.04094121604 | G105: 0 | H105: 0
A106: 92 | B106: 1800 | D106: 92 | E106: =IF(A106>$F$6+$B$6,ArrFlow_j(INDIRECT("b"&ROW()-INT($F$6)),E105,$F$7),0) -> 118.3182769 | F106: 0.03286618802 | G106: 0 | H106: 0
A107: 93 | B107: 1800 | D107: 93 | E107: =IF(A107>$F$6+$B$6,ArrFlow_j(INDIRECT("b"&ROW()-INT($F$6)),E106,$F$7),0) -> 94.98180832 | F107: 0.02638383564 | G107: 0 | H107: 0
A108: 94 | B108: 1800 | D108: 94 | E108: =IF(A108>$F$6+$B$6,ArrFlow_j(INDIRECT("b"&ROW()-INT($F$6)),E107,$F$7),0) -> 76.24810088 | F108: 0.02118002802 | G108: 0 | H108: 0
A109: 95 | B109: 1800 | D109: 95 | E109: =IF(A109>$F$6+$B$6,ArrFlow_j(INDIRECT("b"&ROW()-INT($F$6)),E108,$F$7),0) -> 61.2093304 | F109: 0.01700259178 | G109: 0 | H109: 0
A110: 96 | B110: 1800 | D110: 96 | E110: =IF(A110>$F$6+$B$6,ArrFlow_j(INDIRECT("b"&ROW()-INT($F$6)),E109,$F$7),0) -> 49.13672715 | F110: 0.01364909087 | G110: 0 | H110: 0
A111: 97 | B111: 1800 | D111: 97 | E111: =IF(A111>$F$6+$B$6,ArrFlow_j(INDIRECT("b"&ROW()-INT($F$6)),E110,$F$7),0) -> 39.44526004 | F111: 0.01095701668 | G111: 0 | H111: 0
A112: 98 | B112: 1800 | D112: 98 | E112: =IF(A112>$F$6+$B$6,ArrFlow_j(INDIRECT("b"&ROW()-INT($F$6)),E111,$F$7),0) -> 31.66528644 | F112: 0.0087959129 | G112: 0 | H112: 0
A113: 99 | B113: 1800 | D113: 99 | E113: =IF(A113>$F$6+$B$6,ArrFlow_j(INDIRECT("b"&ROW()-INT($F$6)),E112,$F$7),0) -> 25.41979351 | F113: 0.007061053753 | G113: 0 | H113: 0
A114: 100 | B114: 1800 | D114: 100 | E114: =IF(A114>$F$6+$B$6,ArrFlow_j(INDIRECT("b"&ROW()-INT($F$6)),E113,$F$7),0) -> 20.40612844 | F114: 0.005668369011 | G114: 0 | H114: 0
A115: 101 | B115: 1800 | D115: 101 | E115: =IF(A115>$F$6+$B$6,ArrFlow_j(INDIRECT("b"&ROW()-INT($F$6)),E114,$F$7),0) -> 16.38133204 | F115: 0.004550370011 | G115: 0 | H115: 0
A116: 102 | B116: 1800 | D116: 102 | E116: =IF(A116>$F$6+$B$6,ArrFlow_j(INDIRECT("b"&ROW()-INT($F$6)),E115,$F$7),0) -> 13.15036511 | F116: 0.003652879197 | G116: 0 | H116: 0
A117: 103 | B117: 1800 | D117: 103 | E117: =IF(A117>$F$6+$B$6,ArrFlow_j(INDIRECT("b"&ROW()-INT($F$6)),E116,$F$7),0) -> 10.55665693 | F117: 0.002932404704 | G117: 0 | H117: 0
A118: 104 | B118: 1800 | D118: 104 | E118: =IF(A118>$F$6+$B$6,ArrFlow_j(INDIRECT("b"&ROW()-INT($F$6)),E117,$F$7),0) -> 8.474517985 | F118: 0.002354032773 | G118: 0 | H118: 0
A119: 105 | B119: 1800 | D119: 105 | E119: =IF(A119>$F$6+$B$6,ArrFlow_j(INDIRECT("b"&ROW()-INT($F$6)),E118,$F$7),0) -> 6.803049064 | F119: 0.001889735851 | G119: 0 | H119: 0
A120: 106 | B120: 1800 | D120: 106 | E120: =IF(A120>$F$6+$B$6,ArrFlow_j(INDIRECT("b"&ROW()-INT($F$6)),E119,$F$7),0) -> 5.461251797 | F120: 0.001517014388 | G120: 0 | H120: 0
A121: 107 | B121: 1800 | D121: 107 | E121: =IF(A121>$F$6+$B$6,ArrFlow_j(INDIRECT("b"&ROW()-INT($F$6)),E120,$F$7),0) -> 4.384103496 | F121: 0.001217806527 | G121: 0 | H121: 0
A122: 108 | B122: 1800 | D122: 108 | E122: =IF(A122>$F$6+$B$6,ArrFlow_j(INDIRECT("b"&ROW()-INT($F$6)),E121,$F$7),0) -> 3.519406206 | F122: 0.000977612835 | G122: 0 | H122: 0
A123: 109 | B123: 1800 | D123: 109 | E123: =IF(A123>$F$6+$B$6,ArrFlow_j(INDIRECT("b"&ROW()-INT($F$6)),E122,$F$7),0) -> 2.825257217 | F123: 0.0007847936713 | G123: 0 | H123: 0
A124: 110 | B124: 1800 | D124: 110 | E124: =IF(A124>$F$6+$B$6,ArrFlow_j(INDIRECT("b"&ROW()-INT($F$6)),E123,$F$7),0) -> 2.268018488 | F124: 0.0006300051355 | G124: 0 | H124: 0
A125: 111 | B125: 1800 | D125: 111 | E125: =IF(A125>$F$6+$B$6,ArrFlow_j(INDIRECT("b"&ROW()-INT($F$6)),E124,$F$7),0) -> 1.820686566 | F125: 0.0005057462685 | G125: 0 | H125: 0
A126: 112 | B126: 1800 | D126: 112 | E126: =IF(A126>$F$6+$B$6,ArrFlow_j(INDIRECT("b"&ROW()-INT($F$6)),E125,$F$7),0) -> 1.461584017 | F126: 0.0004059955604 | G126: 0 | H126: 0
A127: 113 | B127: 1800 | D127: 113 | E127: =IF(A127>$F$6+$B$6,ArrFlow_j(INDIRECT("b"&ROW()-INT($F$6)),E126,$F$7),0) -> 356.1957494 | F127: 0.09894326373 | G127: 0 | H127: 0
A128: 114 | B128: 800 | D128: 114 | E128: =IF(A128>$F$6+$B$6,ArrFlow_j(INDIRECT("b"&ROW()-INT($F$6)),E127,$F$7),0) -> 640.964032 | F128: 0.1780455644 | G128: 0 | H128: 0
A129: 115 | B129: 800 | D129: 115 | E129: =IF(A129>$F$6+$B$6,ArrFlow_j(INDIRECT("b"&ROW()-INT($F$6)),E128,$F$7),0) -> 869.5661309 | F129: 0.2415461475 | G129: 0.2415461475 | H129: 0.2415461475
A130: 116 | B130: 800 | D130: 116 | E130: =IF(A130>$F$6+$B$6,ArrFlow_j(INDIRECT("b"&ROW()-INT($F$6)),E129,$F$7),0) -> 1053.079966 | F130: 0.2925222127 | G130: 0.2925222127 | H130: 0.5340683602
A131: 117 | B131: 800 | D131: 117 | E131: =IF(A131>$F$6+$B$6,ArrFlow_j(INDIRECT("b"&ROW()-INT($F$6)),E130,$F$7),0) -> 1200.398507 | F131: 0.3334440296 | G131: 0.3334440296 | H131: 0.8675123898
A132: 118 | B132: 800 | D132: 118 | E132: =IF(A132>$F$6+$B$6,ArrFlow_j(INDIRECT("b"&ROW()-INT($F$6)),E131,$F$7),0) -> 1318.660721 | F132: 0.3662946447 | G132: 0.3662946447 | H132: 1.233807034
A133: 119 | B133: 800 | D133: 119 | E133: =IF(A133>$F$6+$B$6,ArrFlow_j(INDIRECT("b"&ROW()-INT($F$6)),E132,$F$7),0) -> 1413.597524 | F133: 0.3926659789 | G133: 0.3926659789 | H133: 1.626473013
A134: 120 | B134: 0 | D134: 120 | E134: =IF(A134>$F$6+$B$6,ArrFlow_j(INDIRECT("b"&ROW()-INT($F$6)),E133,$F$7),0) -> 1489.809496 | F134: 0.4138359711 | G134: 0.4138359711 | H134: 2.040308984
A135: 121 | B135: 0 | D135: 121 | E135: =IF(A135>$F$6+$B$6,ArrFlow_j(INDIRECT("b"&ROW()-INT($F$6)),E134,$F$7),0) -> 1550.989824 | F135: 0.4308305066 | G135: 0.4308305066 | H135: 2.471139491
A136: 122 | B136: 0 | D136: 122 | E136: =IF(A136>$F$6+$B$6,ArrFlow_j(INDIRECT("b"&ROW()-INT($F$6)),E135,$F$7),0) -> 1600.103268 | F136: 0.4444731301 | G136: 0.4444731301 | H136: 2.915612621
A137: 123 | B137: 0 | D137: 123 | E137: =IF(A137>$F$6+$B$6,ArrFlow_j(INDIRECT("b"&ROW()-INT($F$6)),E136,$F$7),0) -> 1639.529838 | F137: 0.455424955 | G137: 0.455424955 | H137: 3.371037576
A138: 124 | B138: 0 | D138: 124 | E138: =IF(A138>$F$6+$B$6,ArrFlow_j(INDIRECT("b"&ROW()-INT($F$6)),E137,$F$7),0) -> 1671.180121 | F138: 0.4642167002 | G138: 0.4642167002 | H138: 3.835254276
A139: 125 | B139: 0 | D139: 125 | E139: =IF(A139>$F$6+$B$6,ArrFlow_j(INDIRECT("b"&ROW()-INT($F$6)),E138,$F$7),0) -> 1696.58787 | F139: 0.4712744082 | G139: 0.4712744082 | H139: 4.306528685
A140: 126 | B140: 0 | D140: 126 | E140: =IF(A140>$F$6+$B$6,ArrFlow_j(INDIRECT("b"&ROW()-INT($F$6)),E139,$F$7),0) -> 1716.984329 | F140: 0.4769400914 | G140: 0.4769400914 | H140: 4.783468776
A141: 127 | B141: 0 | D141: 127 | E141: =IF(A141>$F$6+$B$6,ArrFlow_j(INDIRECT("b"&ROW()-INT($F$6)),E140,$F$7),0) -> 1733.357899 | F141: 0.4814883053 | G141: 0.4814883053 | H141: 5.264957081
A142: 128 | B142: =DepFlowi($B$9,$B$5,$B$4,$B$8,$B$7,A142) -> 0 | D142: 128 | E142: =IF(A142>$F$6+$B$6,ArrFlow_j(INDIRECT("b"&ROW()-INT($F$6)),E141,$F$7),0) -> 1746.502033 | F142: 0.4851394536 | G142: 0.4851394536 | H142: 5.750096535
A143: 129 | B143: 0 | D143: 129 | E143: =IF(A143>$F$6+$B$6,ArrFlow_j(INDIRECT("b"&ROW()-INT($F$6)),E142,$F$7),0) -> 1757.053688 | F143: =E143/3600 -> 0.4880704689 | G143: 0.4880704689 | H143: 6.238167004
A144: 130 | B144: 0 | D144: 130 | E144: =IF(A144>$F$6+$B$6,ArrFlow_j(INDIRECT("b"&ROW()-INT($F$6)),E143,$F$7),0) -> 1765.52419 | F144: 0.4904233862 | G144: =QueueStatus(D144,F144,$N$10,$N$11,$J$9,$N$13,H143) -> 0.4904233862 | H144: =QueueLength(D144,$N$10,$N$11,H143,G144,$J$9) -> 6.72859039
A145: 131 | B145: 0 | D145: 131 | E145: =IF(A145>$F$6+$B$6,ArrFlow_j(INDIRECT("b"&ROW()-INT($F$6)),E144,$F$7),0) -> 1772.324016 | F145: 0.4923122267 | G145: 0.4923122267 | H145: 7.220902617
A146: 132 | B146: 0 | D146: 132 | E146: =IF(A146>$F$6+$B$6,ArrFlow_j(INDIRECT("b"&ROW()-INT($F$6)),E145,$F$7),0) -> 1777.78268 | F146: 0.4938285223 | G146: 0.4938285223 | H146: 7.714731139
A147: 133 | B147: 0 | D147: 133 | E147: =IF(A147>$F$6+$B$6,ArrFlow_j(INDIRECT("b"&ROW()-INT($F$6)),E146,$F$7),0) -> 1782.164706 | F147: 0.4950457518 | G147: 0.4950457518 | H147: 8.209776891
A148: 134 | B148: 0 | D148: 134 | E148: =IF(A148>$F$6+$B$6,ArrFlow_j(INDIRECT("b"&ROW()-INT($F$6)),E147,$F$7),0) -> 1785.682445 | F148: 0.4960229014 | G148: 0.4960229014 | H148: 8.705799792
A149: 135 | B149: 0 | D149: 135 | E149: =IF(A149>$F$6+$B$6,ArrFlow_j(INDIRECT("b"&ROW()-INT($F$6)),E148,$F$7),0) -> 1788.506363 | F149: 0.4968073232 | G149: 0.4968073232 | H149: 9.202607115
A150: 136 | B150: 0 | D150: 136 | E150: =IF(A150>$F$6+$B$6,ArrFlow_j(INDIRECT("b"&ROW()-INT($F$6)),E149,$F$7),0) -> 1790.773307 | F150: 0.4974370298 | G150: 0.4974370298 | H150: 9.700044145
A151: 137 | B151: 0 | D151: 137 | E151: =IF(A151>$F$6+$B$6,ArrFlow_j(INDIRECT("b"&ROW()-INT($F$6)),E150,$F$7),0) -> 1595.358442 | F151: 0.4431551228 | G151: 0.4431551228 | H151: 10.14319927
A152: 138 | B152: 0 | D152: 138 | E152: =IF(A152>$F$6+$B$6,ArrFlow_j(INDIRECT("b"&ROW()-INT($F$6)),E151,$F$7),0) -> 1438.486167 | F152: 0.3995794908 | G152: 0.3995794908 | H152: 10.54277876
A153: 139 | B153: 0 | D153: 139 | E153: =IF(A153>$F$6+$B$6,ArrFlow_j(INDIRECT("b"&ROW()-INT($F$6)),E152,$F$7),0) -> 1312.554546 | F153: 0.3645984851 | G153: 0.3645984851 | H153: 10.90737724
A154: 140 | B154: 0 | D154: 140 | E154: =IF(A154>$F$6+$B$6,ArrFlow_j(INDIRECT("b"&ROW()-INT($F$6)),E153,$F$7),0) -> 1211.46101 | F154: 0.3365169471 | G154: 0.3365169471 | H154: 11.24389419
A155: 141 | B155: 0 | D155: 141 | E155: =IF(A155>$F$6+$B$6,ArrFlow_j(INDIRECT("b"&ROW()-INT($F$6)),E154,$F$7),0) -> 1130.306625 | F155: 0.3139740626 | G155: 0.3139740626 | H155: 11.55786825
A156: 142 | B156: 0 | D156: 142 | E156: =IF(A156>$F$6+$B$6,ArrFlow_j(INDIRECT("b"&ROW()-INT($F$6)),E155,$F$7),0) -> 1065.158701 | F156: 0.2958774169 | G156: 0.2958774169 | H156: 11.85374567
A157: 143 | B157: 0 | D157: 143 | E157: =IF(A157>$F$6+$B$6,ArrFlow_j(INDIRECT("b"&ROW()-INT($F$6)),E156,$F$7),0) -> 855.0724555 | F157: 0.2375201265 | G157: 0.2375201265 | H157: 12.0912658
A158: 144 | B158: 0 | D158: 144 | E158: =IF(A158>$F$6+$B$6,ArrFlow_j(INDIRECT("b"&ROW()-INT($F$6)),E157,$F$7),0) -> 686.4225055 | F158: 0.1906729182 | G158: 0.1906729182 | H158: 12.28193872
A159: 145 | B159: 0 | D159: 145 | E159: =IF(A159>$F$6+$B$6,ArrFlow_j(INDIRECT("b"&ROW()-INT($F$6)),E158,$F$7),0) -> 551.036176 | F159: 0.1530656045 | G159: -0.3747121733 | H159: 11.90722654
A160: 146 | B160: 0 | D160: 146 | E160: =IF(A160>$F$6+$B$6,ArrFlow_j(INDIRECT("b"&ROW()-INT($F$6)),E159,$F$7),0) -> 442.3527271 | F160: 0.1228757575 | G160: -0.4049020202 | H160: 11.50232452
A161: 147 | B161: 0 | D161: 147 | E161: =IF(A161>$F$6+$B$6,ArrFlow_j(INDIRECT("b"&ROW()-INT($F$6)),E160,$F$7),0) -> 355.1054245 | F161: 0.0986403957 | G161: -0.4291373821 | H161: 11.07318714
A162: 148 | B162: 0 | D162: 148 | E162: =IF(A162>$F$6+$B$6,ArrFlow_j(INDIRECT("b"&ROW()-INT($F$6)),E161,$F$7),0) -> 285.0663165 | F162: 0.07918508791 | G162: -0.4485926899 | H162: 10.62459445
A163: 149 | B163: 0 | D163: 149 | E163: =IF(A163>$F$6+$B$6,ArrFlow_j(INDIRECT("b"&ROW()-INT($F$6)),E162,$F$7),0) -> 228.8413502 | F163: 0.06356704171 | G163: -0.4642107361 | H163: 10.16038371
A164: 150 | B164: 1800 | D164: 150 | E164: =IF(A164>$F$6+$B$6,ArrFlow_j(INDIRECT("b"&ROW()-INT($F$6)),E163,$F$7),0) -> 183.7058976 | F164: 0.051029416 | G164: -0.4767483618 | H164: 9.683635352
A165: 151 | B165: 1800 | D165: 151 | E165: =IF(A165>$F$6+$B$6,ArrFlow_j(INDIRECT("b"&ROW()-INT($F$6)),E164,$F$7),0) -> 147.472722 | F165: 0.040964645 | G165: -0.4868131328 | H165: 9.196822219
A166: 152 | B166: 1800 | D166: 152 | E166: =IF(A166>$F$6+$B$6,ArrFlow_j(INDIRECT("b"&ROW()-INT($F$6)),E165,$F$7),0) -> 118.3859855 | F166: 0.03288499598 | G166: -0.4948927818 | H166: 8.701929437
A167: 153 | B167: 1800 | D167: 153 | E167: =IF(A167>$F$6+$B$6,ArrFlow_j(INDIRECT("b"&ROW()-INT($F$6)),E166,$F$7),0) -> 95.03616246 | F167: 0.02639893402 | G167: -0.5013788438 | H167: 8.200550593
A168: 154 | B168: 1800 | D168: 154 | E168: =IF(A168>$F$6+$B$6,ArrFlow_j(INDIRECT("b"&ROW()-INT($F$6)),E167,$F$7),0) -> 76.2917345 | F168: 0.02119214847 | G168: -0.5065856293 | H168: 7.693964964
A169: 155 | B169: 1800 | D169: 155 | E169: =IF(A169>$F$6+$B$6,ArrFlow_j(INDIRECT("b"&ROW()-INT($F$6)),E168,$F$7),0) -> 61.24435796 | F169: 0.01701232166 | G169: -0.5107654561 | H169: 7.183199508
A170: 156 | B170: 1800 | D170: 156 | E170: =IF(A170>$F$6+$B$6,ArrFlow_j(INDIRECT("b"&ROW()-INT($F$6)),E169,$F$7),0) -> 49.16484605 | F170: 0.01365690168 | G170: -0.5141208761 | H170: 6.669078632
A171: 157 | B171: 1800 | D171: 157 | E171: =IF(A171>$F$6+$B$6,ArrFlow_j(INDIRECT("b"&ROW()-INT($F$6)),E170,$F$7),0) -> 39.46783293 | F171: 0.01096328692 | G171: -0.5168144909 | H171: 6.152264141
A172: 158 | B172: 1800 | D172: 158 | E172: =IF(A172>$F$6+$B$6,ArrFlow_j(INDIRECT("b"&ROW()-INT($F$6)),E171,$F$7),0) -> 31.68340717 | F172: 0.008800946435 | G172: -0.5189768313 | H172: 5.63328731
A173: 159 | B173: 1800 | D173: 159 | E173: =IF(A173>$F$6+$B$6,ArrFlow_j(INDIRECT("b"&ROW()-INT($F$6)),E172,$F$7),0) -> 25.4343402 | F173: 0.007065094501 | G173: -0.5207126833 | H173: 5.112574626
A174: 160 | B174: 1800 | D174: 160 | E174: =IF(A174>$F$6+$B$6,ArrFlow_j(INDIRECT("b"&ROW()-INT($F$6)),E173,$F$7),0) -> 20.41780602 | F174: 0.005671612783 | G174: -0.522106165 | H174: 4.590468461
A175: 161 | B175: 1800 | D175: 161 | E175: =IF(A175>$F$6+$B$6,ArrFlow_j(INDIRECT("b"&ROW()-INT($F$6)),E174,$F$7),0) -> 16.3907064 | F175: 0.004552973999 | G175: -0.5232248038 | H175: 4.067243658
A176: 162 | B176: 1800 | D176: 162 | E176: =IF(A176>$F$6+$B$6,ArrFlow_j(INDIRECT("b"&ROW()-INT($F$6)),E175,$F$7),0) -> 13.15789051 | F176: 0.003654969587 | G176: -0.5241228082 | H176: 3.543120849
A177: 163 | B177: 1800 | D177: 163 | E177: =IF(A177>$F$6+$B$6,ArrFlow_j(INDIRECT("b"&ROW()-INT($F$6)),E176,$F$7),0) -> 10.56269807 | F177: 0.002934082797 | G177: -0.524843695 | H177: 3.018277154
A178: 164 | B178: 1800 | D178: 164 | E178: =IF(A178>$F$6+$B$6,ArrFlow_j(INDIRECT("b"&ROW()-INT($F$6)),E177,$F$7),0) -> 8.479367599 | F178: 0.002355379889 | G178: -0.5254223979 | H178: 2.492854756
A179: 165 | B179: 1800 | D179: 165 | E179: =IF(A179>$F$6+$B$6,ArrFlow_j(INDIRECT("b"&ROW()-INT($F$6)),E178,$F$7),0) -> 6.806942166 | F179: 0.001890817268 | G179: -0.5258869605 | H179: 1.966967796
A180: 166 | B180: 1800 | D180: 166 | E180: =IF(A180>$F$6+$B$6,ArrFlow_j(INDIRECT("b"&ROW()-INT($F$6)),E179,$F$7),0) -> 5.464377044 | F180: 0.001517882512 | G180: -0.5262598953 | H180: 1.440707901
A181: 167 | B181: 1800 | D181: 167 | E181: =IF(A181>$F$6+$B$6,ArrFlow_j(INDIRECT("b"&ROW()-INT($F$6)),E180,$F$7),0) -> 4.386612336 | F181: 0.001218503427 | G181: -0.5265592744 | H181: 0.9141486263
A182: 168 | B182: 1800 | D182: 168 | E182: =IF(A182>$F$6+$B$6,ArrFlow_j(INDIRECT("b"&ROW()-INT($F$6)),E181,$F$7),0) -> 3.521420216 | F182: 0.0009781722821 | G182: -0.5267996055 | H182: 0.3873490209
A183: 169 | B183: 1800 | D183: 169 | E183: =IF(A183>$F$6+$B$6,ArrFlow_j(INDIRECT("b"&ROW()-INT($F$6)),E182,$F$7),0) -> 2.826873994 | F183: 0.0007852427761 | G183: 0 | H183: 0
A184: 170 | B184: 1800 | D184: 170 | E184: =IF(A184>$F$6+$B$6,ArrFlow_j(INDIRECT("b"&ROW()-INT($F$6)),E183,$F$7),0) -> 2.269316381 | F184: 0.0006303656613 | G184: 0 | H184: 0
A185: 171 | B185: 1800 | D185: 171 | E185: =IF(A185>$F$6+$B$6,ArrFlow_j(INDIRECT("b"&ROW()-INT($F$6)),E184,$F$7),0) -> 1.82172847 | F185: 0.000506035686 | G185: 0 | H185: 0
A186: 172 | B186: 1800 | D186: 172 | E186: =IF(A186>$F$6+$B$6,ArrFlow_j(INDIRECT("b"&ROW()-INT($F$6)),E185,$F$7),0) -> 1.462420421 | F186: 0.0004062278948 | G186: 0 | H186: 0
A187: 173 | B187: 1800 | D187: 173 | E187: =IF(A187>$F$6+$B$6,ArrFlow_j(INDIRECT("b"&ROW()-INT($F$6)),E186,$F$7),0) -> 356.1964209 | F187: 0.09894345024 | G187: 0 | H187: 0
A188: 174 | B188: 800 | D188: 174 | E188: =IF(A188>$F$6+$B$6,ArrFlow_j(INDIRECT("b"&ROW()-INT($F$6)),E187,$F$7),0) -> 640.964571 | F188: 0.1780457142 | G188: 0 | H188: 0
A189: 175 | B189: 800 | D189: 175 | E189: =IF(A189>$F$6+$B$6,ArrFlow_j(INDIRECT("b"&ROW()-INT($F$6)),E188,$F$7),0) -> 869.5665636 | F189: 0.2415462677 | G189: 0 | H189: 0
A190: 176 | B190: 800 | D190: 176 | E190: =IF(A190>$F$6+$B$6,ArrFlow_j(INDIRECT("b"&ROW()-INT($F$6)),E189,$F$7),0) -> 1053.080313 | F190: 0.2925223092 | G190: 0 | H190: 0
A191: 177 | B191: 800 | D191: 177 | E191: =IF(A191>$F$6+$B$6,ArrFlow_j(INDIRECT("b"&ROW()-INT($F$6)),E190,$F$7),0) -> 1200.398785 | F191: 0.3334441071 | G191: 0 | H191: 0
A192: 178 | B192: 800 | D192: 178 | E192: =IF(A192>$F$6+$B$6,ArrFlow_j(INDIRECT("b"&ROW()-INT($F$6)),E191,$F$7),0) -> 1318.660945 | F192: 0.3662947068 | G192: 0 | H192: 0
A193: 179 | B193: 800 | D193: 179 | E193: =IF(A193>$F$6+$B$6,ArrFlow_j(INDIRECT("b"&ROW()-INT($F$6)),E192,$F$7),0) -> 1413.597704 | F193: 0.3926660288 | G193: 0 | H193: 0
A194: 180 | B194: 0 | D194: 180 | E194: =IF(A194>$F$6+$B$6,ArrFlow_j(INDIRECT("b"&ROW()-INT($F$6)),E193,$F$7),0) -> 1489.80964 | F194: 0.4138360112 | G194: 0 | H194: 0
A195: 181 | B195: 0 | D195: 181 | E195: =IF(A195>$F$6+$B$6,ArrFlow_j(INDIRECT("b"&ROW()-INT($F$6)),E194,$F$7),0) -> 1550.98994 | F195: 0.4308305388 | G195: 0 | H195: 0
A196: 182 | B196: 0 | D196: 182 | E196: =IF(A196>$F$6+$B$6,ArrFlow_j(INDIRECT("b"&ROW()-INT($F$6)),E195,$F$7),0) -> 1600.103361 | F196: 0.4444731559 | G196: 0 | H196: 0
A197: 183 | B197: 0 | D197: 183 | E197: =IF(A197>$F$6+$B$6,ArrFlow_j(INDIRECT("b"&ROW()-INT($F$6)),E196,$F$7),0) -> 1639.529913 | F197: 0.4554249758 | G197: 0 | H197: 0
A198: 184 | B198: 0 | D198: 184 | E198: =IF(A198>$F$6+$B$6,ArrFlow_j(INDIRECT("b"&ROW()-INT($F$6)),E197,$F$7),0) -> 1671.180181 | F198: 0.4642167168 | G198: 0 | H198: 0
A199: 185 | B199: 0 | D199: 185 | E199: =IF(A199>$F$6+$B$6,ArrFlow_j(INDIRECT("b"&ROW()-INT($F$6)),E198,$F$7),0) -> 1696.587918 | F199: 0.4712744216 | G199: 0 | H199: 0
A200: 186 | B200: 0 | D200: 186 | E200: =IF(A200>$F$6+$B$6,ArrFlow_j(INDIRECT("b"&ROW()-INT($F$6)),E199,$F$7),0) -> 1716.984368 | F200: 0.4769401021 | G200: 0 | H200: 0
A201: 187 | B201: 0 | D201: 187 | E201: =IF(A201>$F$6+$B$6,ArrFlow_j(INDIRECT("b"&ROW()-INT($F$6)),E200,$F$7),0) -> 1733.35793 | F201: 0.4814883139 | G201: 0 | H201: 0
... 13 more rows
